fUSD/lending_fUSD_20240513
["ID","MTS","AMOUNT","RATE_DAILY","PERIOD"]
[326952138,1715640662061,-500.0,0.00012998,2]
[326952139,1715640662071,-500.0,0.00012998,2]
[326952140,1715640662080,-500.0,0.00012998,2]
[326952141,1715640662089,-500.0,0.00012998,2]
[326952142,1715640662098,-500.0,0.00012998,2]
[326952143,1715640662107,-151.0,0.00012998,2]
[326952144,1715640662116,-500.0,0.00012998,2]
[326952145,1715640662125,-500.0,0.00012998,2]
[326952146,1715640662134,-500.0,0.00012998,2]
[326952147,1715640662143,-500.0,0.00012998,2]
[326952148,1715640662153,-429.91,0.00012998,2]
[326952149,1715640662162,-285.62,0.00012998,2]
[326952150,1715640662171,-500.0,0.00012998,2]
[326952151,1715640662180,-500.0,0.00012998,2]
[326952152,1715640662189,-402.44,0.00012998,2]
[326952153,1715640662198,-500.0,0.00012998,2]
[326952154,1715640662207,-500.0,0.00012998,2]
[326952155,1715640662216,-500.0,0.00012998,2]
[326952156,1715640662225,-500.0,0.00012998,2]
[326952157,1715640662234,-500.0,0.00012998,2]
[326952158,1715640662243,-223.5,0.00012998,2]
[326952159,1715640662254,-500.0,0.00012998,2]
[326952160,1715640662263,-500.0,0.00012998,2]
[326952161,1715640662271,-156.28,0.00012998,2]
[326952162,1715640662280,-291.98,0.00012998,2]
[326952163,1715640662289,-246.24,0.00012998,2]
[326952164,1715640662298,-500.0,0.00012998,2]
[326952165,1715640662307,-500.0,0.00012998,2]
[326952166,1715640662317,-500.0,0.00012998,2]
[326952167,1715640662326,-500.0,0.00012998,2]
[326952168,1715640662336,-472.4,0.00012998,2]
[326952169,1715640662345,-153.58,0.00012998,2]
[326952170,1715640662354,-500.0,0.00012998,2]
[326952171,1715640662363,-164.13,0.00012998,2]
[326952172,1715640662372,-200.81,0.00012998,2]
[326952173,1715640662381,-500.0,0.00012998,2]
[326952174,1715640662390,-500.0,0.00012998,2]
[326952175,1715640662399,-601.18,0.00012998,2]
[326952176,1715640662408,-500.0,0.00012998,2]
[326952177,1715640662417,-482.76,0.00012998,2]
[326952178,1715640662426,-500.0,0.00012998,2]
[326952179,1715640662435,-447.77,0.00012998,2]
[326952180,1715640662444,-500.0,0.00012998,2]
[326952181,1715640662453,-500.0,0.00012998,2]
[326952182,1715640662462,-172.39,0.00012998,2]
[326952183,1715640662471,-500.0,0.00012998,2]
[326952184,1715640662480,-497.05,0.00012998,2]
[326952185,1715640662490,-500.0,0.00012998,2]
[326952186,1715640662499,-500.0,0.00012998,2]
[326952187,1715640662508,-177.39,0.00012998,2]
[326952188,1715640662521,-227.15,0.00012998,2]
[326952189,1715640662535,-500.0,0.00012998,2]
[326952190,1715640662550,-500.0,0.00012998,2]
[326952191,1715640662563,-420.81,0.00012998,2]
[326952192,1715640662574,-500.0,0.00012998,2]
[326952193,1715640662588,-196.3,0.00012998,2]
[326952194,1715640662601,-500.0,0.00012998,2]
[326952195,1715640662615,-253.16,0.00012998,2]
[326952196,1715640662632,-186.52,0.00012998,2]
[326952197,1715640662646,-151.0,0.00012998,2]
[326952198,1715640662661,-500.0,0.00012998,2]
[326952199,1715640662673,-218.25,0.00012998,2]
[326952200,1715640662685,-500.0,0.00012998,2]
[326952201,1715640662698,-195.15,0.00012998,2]
[326952202,1715640662712,-500.0,0.00012998,2]
[326952203,1715640662725,-462.49,0.00012998,2]
[326952204,1715640662736,-577.6,0.00012998,2]
[326952205,1715640662747,-500.0,0.00012998,2]
[326952206,1715640662758,-500.0,0.00012998,2]
[326952207,1715640662771,-557.03,0.00012998,2]
[326952208,1715640662785,-500.0,0.00012998,2]
[326952209,1715640662797,-399.84,0.00012998,2]
[326952210,1715640662811,-500.0,0.00012998,2]
[326952211,1715640662826,-500.0,0.00012998,2]
[326952212,1715640662838,-500.0,0.00012998,2]
[326952213,1715640662849,-493.64,0.00012998,2]
[326952214,1715640662859,-150.0,0.00012998,2]
[326952215,1715640662872,-150.0,0.00012998,2]
[326952216,1715640662885,-168.87,0.00012998,2]
[326952217,1715640662899,-500.0,0.00012998,2]
[326952218,1715640662909,-336.77,0.00012998,2]
[326952219,1715640662922,-500.0,0.00012998,2]
[326952220,1715640662935,-500.0,0.00012998,2]
[326952221,1715640662947,-463.5,0.00012998,2]
[326952222,1715640662958,-469.29,0.00012998,2]
[326952223,1715640662970,-343.35,0.00012998,2]
[326952224,1715640662981,-379.1898711,0.00012998,2]
[326952225,1715640663009,-120.8101289,0.00012998,2]
[326952226,1715640663021,-500.0,0.00012998,2]
[326952227,1715640663033,-151.0,0.00012998,2]
[326952228,1715640663044,-540.68,0.00012998,2]
[326952229,1715640663055,-151.0,0.00012998,2]
[326952230,1715640663066,-263.488324,0.00012998,2]
[326952231,1715640663080,-500.0,0.00012998,2]
[326952232,1715640663092,-258.08083342,0.00012998,2]
[326952233,1715640663164,-241.91916658,0.00012998,2]
[326952234,1715640663176,-151.0,0.00012998,2]
[326952235,1715640663190,-198.896084,0.00012998,2]
[326952236,1715640663201,-355.49144107,0.00012998,2]
[326952237,1715640663429,-500.0,0.00012927,2]
[326952238,1715640663441,-484.15799489,0.00012992,2]
[326952239,1715640663457,-15.84200511,0.00012992,2]
[326952240,1715640663469,-500.0,0.00012993,2]
[326952241,1715640663481,-500.0,0.00012997,2]
[326952242,1715640663493,-500.0,0.00012997,2]
[326952243,1715640663506,-500.0,0.00012997,2]
[326952244,1715640663517,-52.51706516,0.00012997,2]
[326952245,1715640663535,-447.48293484,0.00012997,2]
[326952246,1715640663547,-144.50855893,0.00012998,2]
[326952247,1715640663560,-428.11,0.00012998,2]
[326952248,1715640663572,-466.86,0.00012998,2]
[326952249,1715640663585,-416.73,0.00012998,2]
[326952250,1715640663598,-486.65,0.00012998,2]
[326952251,1715640663610,-500.0,0.00012998,2]
[326952252,1715640663625,-301.4,0.00012998,2]
[326952253,1715640663645,-500.0,0.00012998,2]
[326952254,1715640663660,-500.0,0.00012998,2]
[326952255,1715640663672,-410.65,0.00012998,2]
[326952256,1715640663682,-500.0,0.00012998,2]
[326952257,1715640663692,-500.0,0.00012998,2]
[326952258,1715640663701,-500.0,0.00012998,2]
[326952259,1715640663713,-500.0,0.00012998,2]
[326952260,1715640663723,-349.96,0.00012998,2]
[326952261,1715640663732,-342.78,0.00012998,2]
[326952262,1715640663742,-500.0,0.00012998,2]
[326952263,1715640663754,-555.37,0.00012998,2]
[326952264,1715640663763,-280.53,0.00012998,2]
[326952265,1715640663772,-500.0,0.00012998,2]
[326952266,1715640663784,-342.3,0.00012998,2]
[326952267,1715640663794,-604.18,0.00012998,2]
[326952268,1715640663804,-500.0,0.00012998,2]
[326952269,1715640663814,-319.31,0.00012998,2]
[326952270,1715640663824,-151.0,0.00012998,2]
[326952271,1715640663836,-196.036916,0.00012998,2]
[326952272,1715640663847,-244.43,0.00012998,2]
[326952273,1715640663856,-253.92,0.00012998,2]
[326952274,1715640663866,-500.0,0.00012998,2]
[326952275,1715640663876,-317.3,0.00012998,2]
[326952276,1715640663886,-184.46,0.00012998,2]
[326952277,1715640663896,-542.99,0.00012998,2]
[326952278,1715640663906,-235.06,0.00012998,2]
[326952279,1715640663916,-174.64,0.00012998,2]
[326952280,1715640663926,-500.0,0.00012998,2]
[326952281,1715640663936,-156.65,0.00012998,2]
[326952282,1715640663945,-500.0,0.00012998,2]
[326952283,1715640663955,-475.64,0.00012998,2]
[326952284,1715640663965,-606.93,0.00012998,2]
[326952285,1715640663975,-433.56,0.00012998,2]
[326952286,1715640663985,-629.03,0.00012998,2]
[326952287,1715640663994,-500.0,0.00012998,2]
[326952288,1715640664005,-511.3003508,0.00012998,2]
[326952289,1715640664015,-500.0,0.00012998,2]
[326952290,1715640664024,-543.18,0.00012998,2]
[326952291,1715640664034,-161.93,0.00012998,2]
[326952292,1715640664043,-500.0,0.00012998,2]
[326952293,1715640664053,-500.0,0.00012998,2]
[326952294,1715640664063,-500.0,0.00012998,2]
[326952295,1715640664073,-226.73,0.00012998,2]
[326952296,1715640664083,-500.0,0.00012998,2]
[326952297,1715640664092,-222.94,0.00012998,2]
[326952298,1715640664101,-482.67,0.00012998,2]
[326952299,1715640664111,-592.99,0.00012998,2]
[326952300,1715640664120,-279.61,0.00012998,2]
[326952301,1715640664130,-313.11,0.00012998,2]
[326952302,1715640664139,-264.66,0.00012998,2]
[326952303,1715640664149,-349.77,0.00012998,2]
[326952304,1715640664158,-163.41,0.00012998,2]
[326952305,1715640664167,-151.0,0.00012998,2]
[326952306,1715640664177,-503.45,0.00012998,2]
[326952307,1715640664493,-500.0,0.00012998,2]
[326952308,1715640664517,-500.0,0.00012998,2]
[326952309,1715640664534,-500.0,0.00012998,2]
[326952310,1715640664545,-151.0,0.00012998,2]
[326952311,1715640664554,-593.88,0.00012998,2]
[326952312,1715640664564,-500.0,0.00012998,2]
[326952313,1715640664574,-500.0,0.00012998,2]
[326952314,1715640664583,-500.0,0.00012998,2]
[326952315,1715640664592,-231.05741318,0.00012998,2]
[326952316,1715640664601,-662.44,0.00012998,2]
[326952317,1715640664610,-563.82,0.00012998,2]
[326952318,1715640664619,-662.44,0.00012998,2]
[326952319,1715640664633,-662.44,0.00012998,2]
[326952320,1715640664642,-500.0,0.00012998,2]
[326952321,1715640664652,-612.56,0.00012998,2]
[326952322,1715640664661,-351.14,0.00012998,2]
[326952323,1715640664672,-459.35,0.00012998,2]
[326952324,1715640664682,-500.0,0.00012998,2]
[326952325,1715640664691,-380.59,0.00012998,2]
[326952326,1715640664701,-151.0,0.00012998,2]
[326952327,1715640664711,-500.0,0.00012998,2]
[326952328,1715640664720,-291.65,0.00012998,2]
[326952329,1715640664730,-412.15133596,0.00012998,2]
[326952330,1715640664739,-551.73,0.00012998,2]
[326952331,1715640664748,-500.0,0.00012998,2]
[326952332,1715640664757,-500.0,0.00012998,2]
[326952333,1715640664766,-500.0,0.00012998,2]
[326952334,1715640664776,-258.11,0.00012998,2]
[326952335,1715640664785,-500.0,0.00012998,2]
[326952336,1715640664794,-500.0,0.00012998,2]
[326952337,1715640664804,-500.0,0.00012998,2]
[326952338,1715640664818,-500.0,0.00012998,2]
[326952339,1715640664827,-500.0,0.00012998,2]
[326952340,1715640664837,-538.89780545,0.00012998,2]
[326952341,1715640664846,-500.0,0.00012998,2]
[326952342,1715640664855,-500.0,0.00012998,2]
[326952343,1715640664864,-500.0,0.00012998,2]
[326952344,1715640664874,-500.0,0.00012998,2]
[326952345,1715640664884,-500.0,0.00012998,2]
[326952346,1715640664893,-500.0,0.00012998,2]
[326952347,1715640664903,-500.0,0.00012998,2]
[326952348,1715640664912,-500.0,0.00012998,2]
[326952349,1715640664923,-500.0,0.00012998,2]
[326952350,1715640664932,-500.0,0.00012998,2]
[326952351,1715640664942,-500.0,0.00012998,2]
[326952352,1715640664952,-719.93,0.00012998,2]
[326952353,1715640664961,-463.79,0.00012998,2]
[326952354,1715640664970,-719.93,0.00012998,2]
[326952355,1715640664979,-719.93,0.00012998,2]
[326952356,1715640664989,-208.5,0.00012998,2]
[326952357,1715640664998,-500.0,0.00012998,2]
[326952358,1715640665008,-500.0,0.00012998,2]
[326952359,1715640665018,-404.08,0.00012998,2]
[326952360,1715640665027,-500.0,0.00012998,2]
[326952361,1715640665037,-500.0,0.00012998,2]
[326952362,1715640665047,-626.84,0.00012998,2]
[326952363,1715640665057,-464.36,0.00012998,2]
[326952364,1715640665066,-500.0,0.00012998,2]
[326952365,1715640665076,-470.58,0.00012998,2]
[326952366,1715640665085,-500.0,0.00012998,2]
[326952367,1715640665095,-554.67,0.00012998,2]
[326952368,1715640665104,-500.0,0.00012998,2]
[326952369,1715640665114,-500.0,0.00012998,2]
[326952370,1715640665124,-319.90782488,0.00012998,2]
[326952371,1715640665133,-500.0,0.00012998,2]
[326952372,1715640665143,-500.0,0.00012998,2]
[326952373,1715640665152,-500.0,0.00012998,2]
[326952374,1715640665161,-551.22,0.00012998,2]
[326952375,1715640665170,-500.0,0.00012998,2]
[326952376,1715640665180,-428.63,0.00012998,2]
[326952377,1715640665189,-500.0,0.00012998,2]
[326952378,1715640665198,-500.0,0.00012998,2]
[326952379,1715640665207,-500.0,0.00012998,2]
[326952380,1715640665217,-500.0,0.00012998,2]
[326952381,1715640665226,-500.0,0.00012998,2]
[326952382,1715640665236,-500.0,0.00012998,2]
[326952383,1715640665245,-500.0,0.00012998,2]
[326952384,1715640665255,-500.0,0.00012998,2]
[326952385,1715640665264,-500.0,0.00012998,2]
[326952386,1715640665274,-500.0,0.00012998,2]
[326952387,1715640665282,-500.0,0.00012998,2]
[326952388,1715640665292,-500.0,0.00012998,2]
[326952389,1715640665301,-500.0,0.00012998,2]
[326952390,1715640665312,-500.0,0.00012998,2]
[326952391,1715640665321,-552.46142049,0.00012998,2]
[326952392,1715640665330,-500.0,0.00012998,2]
[326952393,1715640665340,-500.0,0.00012998,2]
[326952394,1715640665349,-151.0,0.00012998,2]
[326952395,1715640665358,-151.0,0.00012998,2]
[326952396,1715640665368,-500.0,0.00012998,2]
[326952397,1715640665377,-338.33,0.00012998,2]
[326952398,1715640665386,-500.0,0.00012998,2]
[326952399,1715640665395,-500.0,0.00012998,2]
[326952400,1715640665404,-151.0,0.00012998,2]
[326952401,1715640665413,-500.0,0.00012998,2]
[326952402,1715640665422,-500.0,0.00012998,2]
[326952403,1715640665431,-280.205722,0.00012998,2]
[326952404,1715640665440,-340.8,0.00012998,2]
[326952405,1715640665450,-456.77,0.00012998,2]
[326952406,1715640665460,-221.92,0.00012998,2]
[326952407,1715640665469,-377.92,0.00012998,2]
[326952408,1715640665479,-262.36,0.00012998,2]
[326952409,1715640665488,-151.0,0.00012998,2]
[326952410,1715640665498,-151.0,0.00012998,2]
[326952411,1715640665508,-500.0,0.00012998,2]
[326952412,1715640665519,-500.0,0.00012998,2]
[326952413,1715640665528,-500.0,0.00012998,2]
[326952414,1715640665538,-500.0,0.00012998,2]
[326952415,1715640665547,-500.0,0.00012998,2]
[326952416,1715640665557,-500.0,0.00012998,2]
[326952417,1715640665566,-500.0,0.00012998,2]
[326952418,1715640665576,-500.0,0.00012998,2]
[326952419,1715640665585,-500.0,0.00012998,2]
[326952420,1715640665595,-500.0,0.00012998,2]
[326952421,1715640665604,-636.19,0.00012998,2]
[326952422,1715640665614,-500.0,0.00012998,2]
[326952423,1715640665625,-235.15,0.00012998,2]
[326952424,1715640665634,-500.0,0.00012998,2]
[326952425,1715640665643,-500.0,0.00012998,2]
[326952426,1715640665652,-500.0,0.00012998,2]
[326952427,1715640665661,-231.86,0.00012998,2]
[326952428,1715640665671,-500.0,0.00012998,2]
[326952429,1715640665680,-460.11,0.00012998,2]
[326952430,1715640665689,-390.68,0.00012998,2]
[326952431,1715640665698,-500.0,0.00012998,2]
[326952432,1715640665710,-500.0,0.00012998,2]
[326952433,1715640665719,-500.0,0.00012998,2]
[326952434,1715640665728,-500.0,0.00012998,2]
[326952435,1715640665738,-500.0,0.00012998,2]
[326952436,1715640665747,-580.73,0.00012998,2]
[326952437,1715640665758,-158.63,0.00012998,2]
[326952438,1715640665767,-500.0,0.00012998,2]
[326952439,1715640665776,-316.8,0.00012998,2]
[326952440,1715640665786,-500.0,0.00012998,2]
[326952441,1715640665795,-580.73,0.00012998,2]
[326952442,1715640665805,-500.0,0.00012998,2]
[326952443,1715640665814,-500.0,0.00012998,2]
[326952444,1715640665824,-500.0,0.00012998,2]
[326952445,1715640665834,-320.0,0.00012998,2]
[326952446,1715640665843,-500.0,0.00012998,2]
[326952447,1715640665853,-500.0,0.00012998,2]
[326952448,1715640665863,-569.4,0.00012998,2]
[326952449,1715640665872,-797.47,0.00012998,2]
[326952450,1715640665882,-438.48,0.00012998,2]
[326952451,1715640665891,-354.31,0.00012998,2]
[326952452,1715640665901,-797.47,0.00012998,2]
[326952453,1715640665910,-500.0,0.00012998,2]
[326952454,1715640665921,-500.0,0.00012998,2]
[326952455,1715640665930,-500.0,0.00012998,2]
[326952456,1715640665940,-2287.91,0.00012998,2]
[326952457,1715640665949,-2287.91,0.00012998,2]
[326952458,1715640665959,-500.0,0.00012998,2]
[326952459,1715640665969,-309.82,0.00012998,2]
[326952460,1715640665978,-500.0,0.00012998,2]
[326952461,1715640665988,-500.0,0.00012998,2]
[326952462,1715640665998,-351.27,0.00012998,2]
[326952463,1715640666009,-500.0,0.00012998,2]
[326952464,1715640666018,-500.0,0.00012998,2]
[326952465,1715640666027,-500.0,0.00012998,2]
[326952466,1715640666037,-500.0,0.00012998,2]
[326952467,1715640666046,-500.0,0.00012998,2]
[326952468,1715640666056,-353.79,0.00012998,2]
[326952469,1715640666065,-500.0,0.00012998,2]
[326952470,1715640666075,-500.0,0.00012998,2]
[326952471,1715640666084,-637.37,0.00012998,2]
[326952472,1715640666094,-500.0,0.00012998,2]
[326952473,1715640666103,-500.0,0.00012998,2]
[326952474,1715640666112,-500.0,0.00012998,2]
[326952475,1715640666121,-500.0,0.00012998,2]
[326952476,1715640666131,-500.0,0.00012998,2]
[326952477,1715640666141,-500.0,0.00012998,2]
[326952478,1715640666150,-543.11,0.00012998,2]
[326952479,1715640666160,-860.424944,0.00012998,2]
[326952480,1715640666170,-860.424944,0.00012998,2]
[326952481,1715640666180,-500.0,0.00012998,2]
[326952482,1715640666189,-500.0,0.00012998,2]
[326952483,1715640666199,-500.0,0.00012998,2]
[326952484,1715640666209,-500.0,0.00012998,2]
[326952485,1715640666219,-860.424944,0.00012998,2]
[326952486,1715640666228,-566.01,0.00012998,2]
[326952487,1715640666238,-860.424944,0.00012998,2]
[326952488,1715640666247,-527.84,0.00012998,2]
[326952489,1715640666259,-527.84,0.00012998,2]
[326952490,1715640666269,-500.0,0.00012998,2]
[326952491,1715640666278,-500.0,0.00012998,2]
[326952492,1715640666288,-492.19,0.00012998,2]
[326952493,1715640666297,-1063.34,0.00012998,2]
[326952494,1715640666306,-1063.34,0.00012998,2]
[326952495,1715640666316,-500.0,0.00012998,2]
[326952496,1715640666325,-500.0,0.00012998,2]
[326952497,1715640666335,-500.0,0.00012998,2]
[326952498,1715640666344,-500.0,0.00012998,2]
[326952499,1715640666353,-500.0,0.00012998,2]
[326952500,1715640666362,-500.0,0.00012998,2]
[326952501,1715640666372,-500.0,0.00012998,2]
[326952502,1715640666382,-500.0,0.00012998,2]
[326952503,1715640666391,-500.0,0.00012998,2]
[326952504,1715640666401,-500.0,0.00012998,2]
[326952505,1715640666410,-500.0,0.00012998,2]
[326952506,1715640666420,-500.0,0.00012998,2]
[326952507,1715640666430,-500.0,0.00012998,2]
[326952508,1715640666439,-500.0,0.00012998,2]
[326952509,1715640666449,-500.0,0.00012998,2]
[326952510,1715640666458,-500.0,0.00012998,2]
[326952511,1715640666467,-500.0,0.00012998,2]
[326952512,1715640666477,-500.0,0.00012998,2]
[326952513,1715640666486,-500.0,0.00012998,2]
[326952514,1715640666495,-500.0,0.00012998,2]
[326952515,1715640666506,-500.0,0.00012998,2]
[326952516,1715640666515,-500.0,0.00012998,2]
[326952517,1715640666524,-500.0,0.00012998,2]
[326952518,1715640666533,-500.0,0.00012998,2]
[326952519,1715640666543,-500.0,0.00012998,2]
[326952520,1715640666552,-500.0,0.00012998,2]
[326952521,1715640666562,-500.0,0.00012998,2]
[326952522,1715640666571,-500.0,0.00012998,2]
[326952523,1715640666581,-172.26,0.00012998,2]
[326952524,1715640666590,-500.0,0.00012998,2]
[326952525,1715640666599,-500.0,0.00012998,2]
[326952526,1715640666609,-500.0,0.00012998,2]
[326952527,1715640666618,-500.0,0.00012998,2]
[326952528,1715640666633,-500.0,0.00012998,2]
[326952529,1715640666643,-500.0,0.00012998,2]
[326952530,1715640666652,-641.55,0.00012998,2]
[326952531,1715640666661,-500.0,0.00012998,2]
[326952532,1715640666672,-590.74,0.00012998,2]
[326952533,1715640666682,-500.0,0.00012998,2]
[326952534,1715640666691,-500.0,0.00012998,2]
[326952535,1715640666704,-500.0,0.00012998,2]
[326952536,1715640666714,-500.0,0.00012998,2]
[326952537,1715640666723,-500.0,0.00012998,2]
[326952538,1715640666733,-500.0,0.00012998,2]
[326952539,1715640666743,-500.0,0.00012998,2]
[326952540,1715640666756,-500.0,0.00012998,2]
[326952541,1715640666765,-542.06,0.00012998,2]
[326952542,1715640666774,-1089.39,0.00012998,2]
[326952543,1715640666783,-1089.39,0.00012998,2]
[326952544,1715640666794,-500.0,0.00012998,2]
[326952545,1715640666804,-1089.39,0.00012998,2]
[326952546,1715640666814,-500.0,0.00012998,2]
[326952547,1715640666824,-619.13,0.00012998,2]
[326952548,1715640666834,-500.0,0.00012998,2]
[326952549,1715640666843,-500.0,0.00012998,2]
[326952550,1715640666853,-394.52,0.00012998,2]
[326952551,1715640666862,-500.0,0.00012998,2]
[326952552,1715640666872,-500.0,0.00012998,2]
[326952553,1715640666882,-500.0,0.00012998,2]
[326952554,1715640666891,-500.0,0.00012998,2]
[326952555,1715640666901,-500.0,0.00012998,2]
[326952556,1715640666910,-278.72,0.00012998,2]
[326952557,1715640666920,-506.39,0.00012998,2]
[326952558,1715640666930,-506.39,0.00012998,2]
[326952559,1715640666939,-500.0,0.00012998,2]
[326952560,1715640666949,-500.0,0.00012998,2]
[326952561,1715640666958,-568.28,0.00012998,2]
[326952562,1715640666967,-500.0,0.00012998,2]
[326952563,1715640666977,-500.0,0.00012998,2]
[326952564,1715640666986,-500.0,0.00012998,2]
[326952565,1715640666995,-356.37,0.00012998,2]
[326952566,1715640667005,-500.0,0.00012998,2]
[326952567,1715640667014,-500.0,0.00012998,2]
[326952568,1715640667024,-500.0,0.00012998,2]
[326952569,1715640667033,-500.0,0.00012998,2]
[326952570,1715640667043,-500.0,0.00012998,2]
[326952571,1715640667053,-500.0,0.00012998,2]
[326952572,1715640667062,-552.14,0.00012998,2]
[326952573,1715640667072,-500.0,0.00012998,2]
[326952574,1715640667082,-151.0,0.00012998,2]
[326952575,1715640667091,-500.0,0.00012998,2]
[326952576,1715640667100,-500.0,0.00012998,2]
[326952577,1715640667110,-235.330864,0.00012998,2]
[326952578,1715640667120,-500.0,0.00012998,2]
[326952579,1715640667129,-500.0,0.00012998,2]
[326952580,1715640667139,-1195.64,0.00012998,2]
[326952581,1715640667148,-1195.64,0.00012998,2]
[326952582,1715640667158,-1195.64,0.00012998,2]
[326952583,1715640667168,-500.0,0.00012998,2]
[326952584,1715640667178,-500.0,0.00012998,2]
[326952585,1715640667188,-500.0,0.00012998,2]
[326952586,1715640667197,-500.0,0.00012998,2]
[326952587,1715640667207,-500.0,0.00012998,2]
[326952588,1715640667217,-500.0,0.00012998,2]
[326952589,1715640667227,-2204.47,0.00012998,2]
[326952590,1715640667236,-2204.47,0.00012998,2]
[326952591,1715640667246,-500.0,0.00012998,2]
[326952592,1715640667257,-375.48851099,0.00012998,2]
[326952593,1715640667266,-500.0,0.00012998,2]
[326952594,1715640667276,-500.0,0.00012998,2]
[326952595,1715640667286,-637.33,0.00012998,2]
[326952596,1715640667295,-500.0,0.00012998,2]
[326952597,1715640667305,-360.31,0.00012998,2]
[326952598,1715640667315,-500.0,0.00012998,2]
[326952599,1715640667324,-500.0,0.00012998,2]
[326952600,1715640667334,-654.56,0.00012998,2]
[326952601,1715640667343,-500.0,0.00012998,2]
[326952602,1715640667353,-654.56,0.00012998,2]
[326952603,1715640667362,-151.0,0.00012998,2]
[326952604,1715640667372,-151.0,0.00012998,2]
[326952605,1715640667381,-500.0,0.00012998,2]
[326952606,1715640667391,-500.0,0.00012998,2]
[326952607,1715640667401,-500.0,0.00012998,2]
[326952608,1715640667410,-500.0,0.00012998,2]
[326952609,1715640667420,-339.4,0.00012998,2]
[326952610,1715640667430,-500.0,0.00012998,2]
[326952611,1715640667439,-500.0,0.00012998,2]
[326952612,1715640667449,-362.45467279,0.00012998,2]
[326952613,1715640667458,-500.0,0.00012998,2]
[326952614,1715640667468,-903.38,0.00012998,2]
[326952615,1715640667478,-903.38,0.00012998,2]
[326952616,1715640667487,-500.0,0.00012998,2]
[326952617,1715640667497,-500.0,0.00012998,2]
[326952618,1715640667507,-500.0,0.00012998,2]
[326952619,1715640667517,-282.3,0.00012998,2]
[326952620,1715640667527,-500.0,0.00012998,2]
[326952621,1715640667536,-583.33,0.00012998,2]
[326952622,1715640667546,-583.33,0.00012998,2]
[326952623,1715640667558,-583.33,0.00012998,2]
[326952624,1715640667568,-500.0,0.00012998,2]
[326952625,1715640667577,-500.0,0.00012998,2]
[326952626,1715640667587,-500.0,0.00012998,2]
[326952627,1715640667597,-500.0,0.00012998,2]
[326952628,1715640667607,-500.0,0.00012998,2]
[326952629,1715640667617,-500.0,0.00012998,2]
[326952630,1715640667631,-500.0,0.00012998,2]
[326952631,1715640667641,-571.71224467,0.00012998,2]
[326952632,1715640667651,-500.0,0.00012998,2]
[326952633,1715640667660,-500.0,0.00012998,2]
[326952634,1715640667671,-500.0,0.00012998,2]
[326952635,1715640667680,-562.77,0.00012998,2]
[326952636,1715640667690,-500.0,0.00012998,2]
[326952637,1715640667701,-370.50415995,0.00012999,2]